fUST/lending_fUST_20251230
["ID","MTS","AMOUNT","RATE_DAILY","PERIOD"]
[400095155,1767099040319,-161.798932,0.00024432,2]
[400095157,1767099040340,-151.0,0.00024432,2]
[400095159,1767099040349,-151.0,0.00024432,2]
[400095161,1767099040359,-151.0,0.00024432,2]
[400095163,1767099040369,-151.0,0.00024432,2]
[400095165,1767099040378,-151.0,0.00024432,2]
[400095167,1767099040387,-151.0,0.00024432,2]
[400095169,1767099040397,-151.0,0.00024432,2]
[400095171,1767099040408,-151.0,0.00024432,2]
[400095173,1767099040419,-151.0,0.00024432,2]
[400095175,1767099040428,-151.0,0.00024432,2]
[400095177,1767099040438,-151.0,0.00024433,2]
[400095178,1767099040446,-151.0,0.00024433,2]
[400095179,1767099040566,-151.0,0.00024433,2]
[400095180,1767099040576,-151.0,0.00024433,2]
[400095181,1767099040585,-151.533477,0.00024433,2]
[400095182,1767099040594,-200.0,0.00024433,2]
[400095183,1767099040604,-500.0,0.00024433,2]
[400095184,1767099040615,-151.0,0.00024433,2]
[400095185,1767099040624,-151.0,0.00024433,2]
[400095186,1767099040634,-151.0,0.00024433,2]
[400095187,1767099040644,-151.0,0.00024433,2]
[400095188,1767099040652,-151.0,0.00024433,2]
[400095189,1767099040662,-151.0,0.00024433,2]
[400095190,1767099040671,-153.658102,0.00024433,2]
[400095191,1767099040680,-151.0,0.00024433,2]
[400095192,1767099040689,-153.32338,0.00024433,2]
[400095193,1767099040699,-154.357484,0.00024433,2]
[400095194,1767099040708,-986.161584,0.00024433,2]
[400095195,1767099040717,-986.161584,0.00024433,2]
[400095196,1767099040726,-986.161584,0.00024433,2]
[400095197,1767099040735,-986.161584,0.00024433,2]
[400095198,1767099040745,-986.161584,0.00024433,2]
[400095199,1767099040755,-986.161584,0.00024433,2]
[400095200,1767099040765,-986.161584,0.00024433,2]
[400095201,1767099040774,-986.161584,0.00024433,2]
[400095202,1767099040783,-986.161584,0.00024433,2]
[400095203,1767099040793,-986.161584,0.00024433,2]
[400095204,1767099040802,-986.161584,0.00024433,2]
[400095205,1767099040811,-986.161584,0.00024433,2]
[400095206,1767099040821,-986.161584,0.00024433,2]
[400095207,1767099040830,-986.161584,0.00024433,2]
[400095208,1767099040839,-986.161584,0.00024433,2]
[400095209,1767099040849,-986.161587,0.00024433,2]
[400095210,1767099040859,-151.0,0.00024433,2]
[400095211,1767099040868,-151.0,0.00024433,2]
[400095212,1767099040877,-151.0,0.00024433,2]
[400095213,1767099040887,-151.0,0.00024433,2]
[400095214,1767099040896,-161.048778,0.00024433,2]
[400095215,1767099040906,-151.0,0.00024433,2]
[400095216,1767099040916,-151.0,0.00024433,2]
[400095217,1767099040925,-151.0,0.00024433,2]
[400095218,1767099040935,-206.35717,0.00024433,2]
[400095219,1767099040944,-151.0,0.00024433,2]
[400095220,1767099040954,-151.0,0.00024433,2]
[400095221,1767099040964,-151.0,0.00024433,2]
[400095222,1767099040973,-151.0,0.00024433,2]
[400095223,1767099040983,-151.0,0.00024433,2]
[400095224,1767099040993,-151.0,0.00024433,2]
[400095225,1767099041003,-151.0,0.00024433,2]
[400095226,1767099041013,-151.0,0.00024433,2]
[400095227,1767099041023,-151.0,0.00024433,2]
[400095228,1767099041032,-151.0,0.00024433,2]
[400095229,1767099041041,-238.1177,0.00024433,2]
[400095230,1767099041051,-238.1177,0.00024433,2]
[400095231,1767099041060,-238.1177,0.00024433,2]
[400095232,1767099041070,-238.1177,0.00024433,2]
[400095233,1767099041079,-238.1177,0.00024433,2]
[400095234,1767099041089,-238.1177,0.00024433,2]
[400095235,1767099041103,-238.1177,0.00024433,2]
[400095236,1767099041113,-238.1177,0.00024433,2]
[400095237,1767099041122,-238.1177,0.00024433,2]
[400095238,1767099041131,-238.1177,0.00024433,2]
[400095239,1767099041141,-238.1177,0.00024433,2]
[400095240,1767099041150,-238.1177,0.00024433,2]
[400095241,1767099041160,-238.1177,0.00024433,2]
[400095242,1767099041171,-238.1177,0.00024433,2]
[400095243,1767099041181,-238.1177,0.00024433,2]
[400095244,1767099041190,-238.117691,0.00024433,2]
[400095245,1767099041199,-151.0,0.00024434,2]
[400095246,1767099041208,-244.549377,0.00024434,2]
[400095247,1767099041218,-151.0,0.00024434,2]
[400095248,1767099041227,-151.0,0.00024434,2]
[400095249,1767099041236,-5761.89,0.000245,2]
[400095250,1767099041245,-156.87,0.000245,7]
[400095251,1767099041254,-151.0,0.000245,2]
[400095252,1767099041263,-162.87917481,0.00024511,2]
[400095253,1767099041272,-500.0,0.0002453,2]
[400095254,1767099041282,-500.0,0.00024597,2]
[400095255,1767099041292,-151.0,0.00024624,2]
[400095256,1767099041302,-500.0,0.00024641,2]
[400095257,1767099041311,-188.62587961,0.00024641,2]
[400095258,1767099041321,-550.0,0.00024667,2]
[400095259,1767099041330,-168.0,0.00024698,2]
[400095260,1767099041339,-11167.34693313,0.000247,3]
[400095261,1767099041349,-561.26,0.00024704,2]
[400095262,1767099041359,-686.18,0.00024704,2]
[400095263,1767099041368,-670.5,0.00024704,2]
[400095264,1767099041378,-200.0,0.00024707,2]
[400095265,1767099041387,-500.0,0.00024707,2]
[400095266,1767099041396,-960.27279476,0.00024786,2]
[400095267,1767099041405,-14432.9431418,0.000248,2]
[400095268,1767099041415,-222.68342028,0.00024802,2]
[400095269,1767099041425,-2487.15318209,0.00024861,2]
[400095270,1767099041435,-15279.0607231,0.000249,2]
[400095271,1767099041444,-36847.05265528,0.000249,2]
[400095292,1767099046345,-791.2784889,0.00024319,2]
[400095293,1767099047090,-89849.49645643,0.00024319,2]
[400095295,1767099649468,5000.0,0.00012771,2]
[400095340,1767100232195,-604.0,0.00013009,2]
[400095342,1767100232205,-249.95610481,0.00013273,2]
[400095344,1767100232214,-300.0,0.00013673,2]
[400095345,1767100232223,-177.0,0.00015141,2]
[400095347,1767100232233,-204.0,0.00017141,2]
[400095349,1767100232242,-231.0,0.00019141,2]
[400095350,1767100232251,-258.2095548,0.00019519,2]
[400095352,1767100232261,-747.59790787,0.00019712,2]
[400095354,1767100232270,-258.0,0.00021141,2]
[400095356,1767100232279,-496.69535137,0.00021168,6]
[400095357,1767100232289,-1079.54108115,0.00021168,6]
[400095362,1767100238336,-94.13153397,0.00021168,6]
[400095363,1767100238346,-23270.25137984,0.00021168,2]
[400095364,1767100238357,-747.59790787,0.00021997,2]
[400095365,1767100238366,-300.0,0.0002228,2]
[400095366,1767100238376,-1200.0,0.00022281,2]
[400095367,1767100238386,-300.0,0.00022281,2]
[400095368,1767100238398,-151.52,0.00022694,2]
[400095369,1767100238407,-1993.111595,0.000229,2]
[400095370,1767100238417,-629.0,0.00022999,2]
[400095371,1767100238426,-614.63,0.00022999,2]
[400095372,1767100238435,-500.0,0.00023,2]
[400095373,1767100238445,-285.0,0.00023141,2]
[400095374,1767100238454,-500.0,0.00023185,2]
[400095375,1767100238465,-500.0,0.00023227,2]
[400095376,1767100238474,-629.0,0.00023273,2]
[400095377,1767100238484,-614.63,0.00023273,2]
[400095378,1767100238493,-500.0,0.00023322,2]
[400095379,1767100238503,-1000.0,0.000234,2]
[400095380,1767100238512,-514.48,0.00023454,2]
[400095381,1767100238523,-500.0,0.00023454,2]
[400095382,1767100238533,-500.0,0.00023454,2]
[400095383,1767100238542,-500.0,0.00023454,2]
[400095384,1767100238552,-500.0,0.00023469,2]
[400095385,1767100238561,-629.0,0.00023547,2]
[400095386,1767100238571,-614.63,0.00023547,2]
[400095387,1767100238580,-514.48,0.00023728,2]
[400095388,1767100238590,-285.40536442,0.00023728,2]
[400095389,1767100238599,-152.94870132,0.00023732,2]
[400095390,1767100238609,-500.0,0.00023732,2]
[400095391,1767100238618,-2398.4119403,0.00023732,2]
[400095392,1767100238628,-500.0,0.00023732,2]
[400095393,1767100238638,-496.47127164,0.00023732,2]
[400095394,1767100238647,-500.0,0.00023732,2]
[400095395,1767100238657,-281.41083797,0.00023732,2]
[400095396,1767100238667,-151.0,0.00023732,2]
[400095397,1767100238675,-158.13647636,0.00023732,2]
[400095398,1767100238684,-151.0,0.00023732,2]
[400095399,1767100238694,-151.0,0.00023732,2]
[400095400,1767100238703,-151.0,0.00023732,2]
[400095401,1767100238712,-151.0,0.00023732,2]
[400095402,1767100238722,-151.0,0.00023732,2]
[400095403,1767100238731,-151.0,0.00023732,2]
[400095404,1767100238742,-151.0,0.00023732,2]
[400095405,1767100238751,-151.0,0.00023732,2]
[400095406,1767100238760,-151.0,0.00023732,2]
[400095407,1767100238771,-151.0,0.00023732,2]
[400095408,1767100238780,-151.0,0.00023732,2]
[400095409,1767100238790,-151.0,0.00023732,2]
[400095410,1767100238799,-151.0,0.00023732,2]
[400095411,1767100238809,-151.0,0.00023732,2]
[400095412,1767100238818,-629.0,0.00023821,2]
[400095413,1767100238828,-614.63,0.00023821,2]
[400095414,1767100238837,-200.0,0.00023835,2]
[400095415,1767100238846,-311.3580163,0.00023835,2]
[400095416,1767100238856,-1041.66666667,0.000239,2]
[400095417,1767100238865,-1000.0,0.000239,2]
[400095418,1767100238877,-170.46,0.00023955,2]
[400095419,1767100238889,-257.2775429,0.00024,2]
[400095420,1767100238902,-514.48,0.00024002,2]
[400095421,1767100238915,-629.0,0.00024095,2]
[400095422,1767100238928,-614.63,0.00024095,2]
[400095423,1767100238941,-687.0,0.00024205,2]
[400095424,1767100238951,-5888.0,0.00024249,2]
[400095425,1767100238961,-500.0,0.00024259,2]
[400095426,1767100238972,-514.48,0.00024276,2]
[400095427,1767100238984,-2487.15318209,0.0002428,2]
[400095428,1767100238995,-514.84070869,0.0002428,2]
[400095429,1767100239007,-747.59790787,0.00024281,2]
[400095430,1767100239019,-629.0,0.00024369,2]
[400095431,1767100239031,-614.63,0.00024369,2]
[400095432,1767100239043,-156.87,0.000244,7]
[400095433,1767100239054,-5905.94,0.000244,2]
[400095434,1767100239066,-1000.0,0.000244,2]
[400095435,1767100239078,-500.0,0.00024458,2]
[400095436,1767100239091,-1694.57340611,0.00024541,2]
[400095437,1767100239103,-500.0,0.00024546,2]
[400095438,1767100239115,-514.48,0.0002455,2]
[400095439,1767100239127,-510.9980938,0.00024568,2]
[400095440,1767100239139,-566.5064537,0.00024568,2]
[400095441,1767100239151,-5495.3940825,0.00024568,2]
[400095442,1767100239162,-629.0,0.00024643,2]
[400095443,1767100239173,-614.63,0.00024643,2]
[400095444,1767100239185,-380.0,0.00024658,2]
[400095445,1767100239197,-500.0,0.0002478,2]
[400095446,1767100239209,-271.66,0.0002479,10]
[400095447,1767100239221,-226.38,0.0002479,10]
[400095448,1767100239232,-151.0,0.000248,8]
[400095449,1767100239244,-151.0,0.000248,7]
[400095450,1767100239254,-151.0,0.000248,7]
[400095451,1767100239264,-13751.15465079,0.000248,2]
[400095452,1767100239276,-160.049123,0.000248,7]
[400095453,1767100239287,-160.049123,0.000248,7]
[400095454,1767100239297,-160.049123,0.000248,7]
[400095455,1767100239309,-5317.12522495,0.000248,2]
[400095456,1767100239321,-160.049123,0.000248,7]
[400095457,1767100239333,-376.95629345,0.00024802,2]
[400095458,1767100239345,-890.73368112,0.00024802,2]
[400095459,1767100239356,-514.48,0.00024824,2]
[400095460,1767100239368,-2579.17784983,0.00024828,2]
[400095461,1767100239380,-533.88981491,0.00024828,2]
[400095462,1767100239392,-500.0,0.00024889,2]
[400095463,1767100239406,-759.58931785,0.0002489,2]
[400095464,1767100239419,-1631.20173974,0.0002489,2]
[400095465,1767100239432,-10000.0,0.00024898,2]
[400095466,1767100239443,-254.98888,0.000249,7]
[400095467,1767100239453,-151.0,0.000249,7]
[400095468,1767100239462,-151.0,0.000249,7]
[400095469,1767100239473,-151.0,0.000249,7]
[400095470,1767100239483,-151.0,0.000249,7]
[400095471,1767100239494,-151.0,0.000249,7]
[400095472,1767100239506,-184.789263,0.000249,7]
[400095473,1767100239520,-196.699686,0.000249,7]
[400095474,1767100239532,-196.699686,0.000249,7]
[400095475,1767100239542,-196.699686,0.000249,7]
[400095476,1767100239552,-196.699686,0.000249,7]
[400095477,1767100239562,-151.0,0.000249,7]
[400095478,1767100239572,-151.0,0.000249,7]
[400095479,1767100239582,-1000.0,0.000249,2]
[400095480,1767100239594,-469.44015882,0.000249,2]
[400095481,1767100239605,-768.21823588,0.000249,2]
[400095482,1767100239615,-160.049123,0.000249,7]
[400095483,1767100239625,-259137.731767,0.000249,2]
[400095484,1767100239636,-160.049123,0.000249,7]
[400095485,1767100239647,-160.049123,0.000249,7]
[400095486,1767100239657,-151.0,0.000249,7]
[400095487,1767100239668,-160.049123,0.000249,7]
[400095488,1767100239679,-930.965162,0.000249,7]
[400095489,1767100239690,-930.965162,0.000249,7]
[400095490,1767100239700,-930.965162,0.000249,7]
[400095491,1767100239711,-930.965162,0.000249,7]
[400095492,1767100239721,-629.0,0.00024917,2]
[400095493,1767100239732,-614.63,0.00024917,2]
[400095494,1767100239743,-600.0,0.00024922,10]
[400095495,1767100239754,-161961.082354,0.0002499,2]
[400095496,1767100239764,-3797.94658925,0.0002499,2]
[400095497,1767100239775,-930.965162,0.0002499,7]
[400095498,1767100239786,-930.965162,0.0002499,7]
[400095499,1767100239796,-930.965162,0.0002499,7]
[400095500,1767100239807,-930.965162,0.0002499,7]
[400095501,1767100239817,-151.0,0.0002499,7]
[400095502,1767100239827,-153.87358,0.0002499,7]
[400095503,1767100239838,-151.0,0.0002499,7]
[400095504,1767100239849,-151.0,0.0002499,7]
[400095505,1767100239859,-566.0,0.00024997,7]
[400095506,1767100239869,-461.28,0.00024999,2]
[400095507,1767100239880,-126192.31127594,0.00025,15]
[400095508,1767100239890,-1084.27758702,0.00025,2]
[400095509,1767100239901,-11293.20269687,0.00025,2]
[400095510,1767100239911,-2671.67802026,0.00025,2]
[400095511,1767100239921,-10364.0,0.00025,2]
[400095512,1767100239931,-500.0,0.00025,2]
[400095513,1767100239942,-1123.0,0.00025,5]
[400095514,1767100239952,-163.75,0.00025,7]
[400095515,1767100239963,-318.55,0.00025,7]
[400095516,1767100239973,-1041.66666667,0.00025,7]
[400095517,1767100239984,-10390.32906121,0.00025,2]
[400095518,1767100239995,-68615.68266567,0.00025,15]
[400095519,1767100240006,-204.93982025,0.00025,2]
[400095520,1767100240016,-151.0,0.00025,7]
[400095521,1767100240026,-151.0,0.00025,7]
[400095522,1767100240037,-264.111661,0.00025,7]
[400095524,1767100240047,-151.0,0.00025,7]
[400095526,1767100240058,-151.0,0.00025,7]
[400095528,1767100240068,-196.699686,0.00025,7]
[400095530,1767100240079,-196.699686,0.00025,7]
[400095531,1767100240089,-196.699686,0.00025,7]
[400095532,1767100240100,-196.699686,0.00025,7]
[400095533,1767100240110,-196.699686,0.00025,7]
[400095535,1767100240121,-196.699686,0.00025,7]
[400095536,1767100240132,-196.699686,0.00025,7]
[400095537,1767100240142,-196.699686,0.00025,7]
[400095538,1767100240153,-151.0,0.00025,7]
[400095539,1767100240164,-151.0,0.00025,7]
[400095540,1767100240174,-151.0,0.00025,7]
[400095541,1767100240317,-160.049123,0.00025,7]
[400095542,1767100240330,-160.049123,0.00025,7]
[400095543,1767100240340,-160.049123,0.00025,7]
[400095544,1767100240350,-160.049123,0.00025,7]
[400095545,1767100240359,-160.049123,0.00025,7]
[400095546,1767100240368,-160.049123,0.00025,7]
[400095547,1767100240378,-160.049123,0.00025,7]
[400095548,1767100240395,-160.049123,0.00025,7]
[400095549,1767100240412,-930.965162,0.00025,7]
[400095550,1767100240422,-930.965162,0.00025,7]
[400095551,1767100240432,-930.965162,0.00025,7]
[400095552,1767100240443,-930.965162,0.00025,7]
[400095553,1767100240454,-930.965162,0.00025,7]
[400095554,1767100240465,-930.965162,0.00025,7]
[400095555,1767100240475,-930.965162,0.00025,7]
[400095556,1767100240485,-930.965162,0.00025,7]
[400095557,1767100240495,-151.0,0.00025,7]
[400095558,1767100240504,-151.0,0.00025,7]
[400095559,1767100240514,-151.0,0.00025,7]
[400095560,1767100240525,-219.903846,0.00025,7]
[400095561,1767100240535,-168.0,0.00025023,2]
[400095562,1767100240544,-200.0,0.00025078,2]
[400095563,1767100240555,-514.48,0.00025098,2]
[400095564,1767100240564,-168.0,0.00025109,2]
[400095565,1767100240574,-504.0,0.00025115,2]
[400095566,1767100240583,-439.0,0.00025123,2]
[400095567,1767100240593,-312.0,0.00025141,2]
[400095568,1767100240602,-629.0,0.00025191,2]
[400095569,1767100240612,-614.63,0.00025191,2]
[400095570,1767100240622,-579.46320172,0.000252,5]
[400095571,1767100240632,-200.0,0.00025215,2]
[400095572,1767100240642,-168.0,0.00025282,2]
[400095573,1767100240653,-168.0,0.00025334,2]
[400095574,1767100240662,-439.0,0.00025344,2]
[400095575,1767100240671,-514.48,0.00025372,2]
[400095576,1767100240681,-2674.60743027,0.00025376,2]
[400095577,1767100240691,-553.64373807,0.00025376,2]
[400095578,1767100240700,-768.2182358,0.00025433,2]
[400095579,1767100240710,-168.0,0.00025434,2]
[400095580,1767100240720,-1984.22942466,0.00025434,2]
[400095581,1767100240729,-629.0,0.00025465,2]
[400095582,1767100240739,-614.63,0.00025465,2]
[400095583,1767100240748,-900.0,0.00025469,3]
[400095584,1767100240758,-1000.0,0.000255,2]
[400095585,1767100240769,-775.0,0.000255,2]
[400095586,1767100240778,-191.79576387,0.00025513,2]
[400095587,1767100240789,-168.0,0.00025559,7]
[400095588,1767100240798,-183.16874953,0.00025568,10]
[400095589,1767100240808,-1631.20173974,0.00025575,2]
[400095590,1767100240818,-32392.2164709,0.0002559,2]
[400095591,1767100240827,-759.58931785,0.0002559,2]
[400095592,1767100240837,-5905.94,0.000256,2]
[400095593,1767100240847,-514.48,0.00025646,2]
[400095594,1767100240857,-930.965162,0.000257,7]
[400095595,1767100240866,-930.965162,0.000257,7]
[400095596,1767100240876,-930.965162,0.000257,7]
[400095597,1767100240886,-930.965158,0.000257,7]
[400095598,1767100240896,-629.0,0.00025739,2]
[400095599,1767100240906,-614.63,0.00025739,2]
[400095600,1767100240915,-184.262,0.00025753,11]
[400095601,1767100240925,-168.0,0.00025888,2]
[400095602,1767100240935,-677.84280689,0.00025895,2]
[400095603,1767100240944,-2002.14663173,0.00025895,2]
[400095604,1767100240954,-151.0,0.00025895,7]
[400095605,1767100240963,-514.48,0.0002592,2]
[400095606,1767100240972,-2773.56790519,0.00025924,2]
[400095607,1767100240982,-574.12855637,0.00025924,2]
[400095608,1767100240991,-768.2182358,0.00025967,2]
[400095609,1767100241000,-32392.2164709,0.0002599,2]
[400095610,1767100241010,-1519.1786357,0.0002599,2]
[400095611,1767100241020,-39742.13262439,0.00026,10]
[400095612,1767100241029,-529.2410511,0.00026,2]
[400095613,1767100241039,-17008.89367988,0.00026,2]
[400095614,1767100241055,-410.19,0.00026,2]
[400095615,1767100241076,-1015.77846062,0.00026,2]
[400095625,1767100243423,-188.65,0.0002479,10]
[400095626,1767100243434,-151.0,0.0002499,7]
[400095627,1767100243443,-151.0,0.00025,7]
[400095628,1767100243453,-151.0,0.00025,7]
[400095629,1767100243462,-1465.1378595,0.00026,2]
[400095630,1767100243474,-161.0,0.00026,5]
[400095631,1767100243484,-1018.4,0.00026,14]
[400095632,1767100243493,-672.92372579,0.00026,10]
[400095635,1767100244891,-184.42752,0.00025895,7]
[400095636,1767100244901,-368.74294088,0.00026,10]
[400095637,1767100244911,-196.699686,0.00026,7]
[400095638,1767100244921,-196.699686,0.00026,7]
[400095639,1767100244930,-196.699686,0.00026,7]
[400095640,1767100244940,-196.699686,0.00026,7]
[400095641,1767100244950,-151.0,0.00026,7]
[400095642,1767100244960,-160.049123,0.00026,7]
[400095643,1767100244970,-160.049123,0.00026,7]
[400095644,1767100244979,-160.049123,0.00026,7]
[400095645,1767100244990,-160.049127,0.00026,7]
[400095646,1767100244999,-629.0,0.00026013,2]
[400095647,1767100245009,-614.63,0.00026013,2]
[400095648,1767100245021,-194.445198,0.0002616,2]
[400095649,1767100245030,-168.0,0.00026165,2]
[400095650,1767100245040,-514.48,0.00026194,2]
[400095651,1767100245049,-13751.1546507,0.00026204,2]
[400095652,1767100245059,-330.72157078,0.00026219,5]
[400095653,1767100245069,-1513.0,0.00026251,2]
[400095654,1767100245079,-1631.20173974,0.00026261,2]
[400095655,1767100245090,-629.0,0.00026287,2]
[400095656,1767100245100,-614.63,0.00026287,2]
[400095657,1767100245109,-168.0,0.00026385,2]
[400095658,1767100245119,-514.48,0.00026468,2]
[400095659,1767100245129,-2876.18991768,0.00026472,2]
[400095660,1767100245138,-595.37131296,0.00026472,2]
[400095661,1767100245148,-168.0,0.0002649,2]
[400095662,1767100245158,-768.2182358,0.000265,2]
[400095663,1767100245168,-629.0,0.00026561,2]
[400095664,1767100245177,-614.63,0.00026561,2]
[400095665,1767100245187,-747.59790787,0.00026566,2]
[400095666,1767100245197,-5000.0,0.00026596,2]
[400095667,1767100245206,-318.55,0.000266,7]
[400095668,1767100245216,-168.0,0.00026629,2]
[400095669,1767100245225,-562.173801,0.00026676,2]
[400095670,1767100245235,-514.48,0.00026742,2]
[400095671,1767100245245,-5905.94,0.000268,2]
[400095672,1767100245254,-1514.0,0.00026828,2]
[400095673,1767100245264,-629.0,0.00026835,2]
[400095674,1767100245275,-614.63,0.00026835,2]
[400095675,1767100245286,-500.0,0.00026838,7]
[400095676,1767100245296,-759.58931785,0.00026878,2]
[400095677,1767100245306,-4192.91527395,0.00026888,2]
[400095678,1767100245316,-196.699686,0.00026888,7]
[400095679,1767100245326,-196.699686,0.00026888,7]
[400095680,1767100245336,-196.699686,0.00026888,7]
[400095681,1767100245345,-196.699678,0.00026888,7]
[400095682,1767100245355,-233.512368,0.00026888,7]
[400095683,1767100245365,-1631.20173974,0.00026946,2]
[400095684,1767100245375,-188.0,0.00027,7]
[400095685,1767100245386,-330.72157078,0.00027004,6]
[400095686,1767100245396,-514.48,0.00027016,2]
[400095687,1767100245408,-2194.83216331,0.0002702,2]
[400095688,1767100245418,-617.40005154,0.0002702,2]
[400095689,1767100245428,-768.2182358,0.00027033,2]
[400095690,1767100245437,-268.68303273,0.00027109,2]
[400095691,1767100245450,-360.31696727,0.00027109,2]
[400095692,1767100245460,-139.84855273,0.00027109,2]
[400095695,1767100246599,-474.78144727,0.00027109,2]
[400095696,1767100246609,-2.2638113,0.00027141,2]
[400095706,1767101110408,275.03605245,0.00025647,120]
[400095729,1767101403439,182.0,0.00028767,120]
[400095749,1767101432379,-498.668496,0.00013699,2]
[400095751,1767101432389,-578.66065782,0.00013699,2]
[400095837,1767101438475,-36.33934218,0.00013699,2]
[400095838,1767101438485,-177.0,0.00015699,2]
[400095839,1767101438494,-204.0,0.00017699,2]
[400095840,1767101438505,-231.0,0.00019699,2]
[400095841,1767101438515,-498.668496,0.00020187,2]
[400095842,1767101438646,-449.21649933,0.00020354,2]
[400095843,1767101438658,-249.61574198,0.00020354,2]
[400095844,1767101438668,-767.16667571,0.000215,2]
[400095845,1767101438677,-258.0,0.00021699,2]
[400095846,1767101438686,-757.0249156,0.00021821,2]
[400095847,1767101438696,-1005.0,0.00022,2]
[400095848,1767101438705,-500.0,0.00023454,2]
[400095849,1767101438715,-449.21649933,0.0002362,2]
[400095850,1767101438724,-285.0,0.00023699,2]
[400095851,1767101438733,-500.0,0.00023728,2]
[400095852,1767101438743,-500.0,0.00023881,2]
[400095853,1767101438754,-200.095502,0.00023881,2]
[400095854,1767101438763,-552.33065236,0.00023881,2]
[400095855,1767101438772,-856.12,0.00023923,2]
[400095856,1767101438782,-500.0,0.00023924,2]
[400095857,1767101438791,-500.0,0.00023924,2]
[400095858,1767101438801,-500.0,0.00024002,2]
[400095859,1767101438811,-240.22,0.00024045,10]
[400095860,1767101438821,-10000.0,0.00024053,2]
[400095861,1767101438831,-1000000.0,0.00024055,2]
[400095862,1767101438840,-1014.21,0.000241,14]
[400095863,1767101438850,-163.75,0.000241,7]
[400095864,1767101438859,-1762.4652,0.00024154,2]
[400095865,1767101438868,-500.0,0.00024155,2]
[400095866,1767101438877,-856.12,0.00024197,2]
[400095867,1767101438887,-500.0,0.00024198,2]
[400095868,1767101438896,-500.0,0.00024198,2]
[400095869,1767101438906,-500.0,0.00024276,2]
[400095870,1767101438915,-196.48196143,0.00024364,2]
[400095871,1767101438925,-155.33308417,0.00024364,2]
[400095872,1767101438934,-275.03605249,0.00024364,2]
[400095873,1767101438943,-151.91674777,0.00024364,2]
[400095874,1767101438953,-250.0,0.00024382,2]
[400095875,1767101438963,-500.0,0.00024382,2]
[400095876,1767101438972,-250.0,0.00024382,2]
[400095877,1767101438981,-500.0,0.00024382,2]
[400095878,1767101438990,-250.0,0.00024382,2]
[400095879,1767101438999,-500.0,0.00024382,2]
[400095880,1767101439009,-250.0,0.00024382,2]
[400095881,1767101439018,-500.0,0.00024382,2]
[400095882,1767101439028,-217.47493711,0.00024382,2]
[400095883,1767101439037,-202.91984525,0.00024382,2]
[400095884,1767101439047,-250.0,0.00024382,2]
[400095885,1767101439057,-250.0,0.00024382,2]
[400095886,1767101439067,-496.47127164,0.00024382,2]
[400095887,1767101439077,-250.0,0.00024382,2]
[400095888,1767101439087,-250.0,0.00024382,2]
[400095889,1767101439097,-250.0,0.00024382,2]
[400095890,1767101439106,-250.0,0.00024382,2]
[400095891,1767101439116,-250.0,0.00024382,2]
[400095892,1767101439126,-250.0,0.00024382,2]
[400095893,1767101439135,-250.0,0.00024382,2]
[400095894,1767101439144,-322.124,0.00024382,2]
[400095895,1767101439154,-217.89380085,0.00024382,2]